[Event "Charlotte GM-A May 2022"]
[Site "Charlotte"]
[Date "2022.05.08"]
[Round "7.1"]
[White "Sheng, Joshua"]
[Black "Korley, Kassa"]
[Result "0-1"]
[ECO "C24"]
[WhiteElo "2487"]
[BlackElo "2413"]
[Annotator "TA"]
[PlyCount "128"]
[EventDate "2022.05.04"]
[EventType "tourn"]
[EventCountry "USA"]
[SourceTitle "playchess.com"]
[Source "ChessBase"]
[SourceQuality "1"]
[TimeControl "5400+30"]

{[%evp 12,128,31,8,12,12,10,21,15,20,25,21,41,17,44,32,32,32,50,43,38,35,35,22,39,35,48,38,35,13,18,10,6,16,17,6,39,18,24,20,22,28,24,31,24,0,0,0,7,0,0,4,39,0,0,0,27,0,23,0,0,0,8,0,0,0,0,0,82,-51,-40,-45,-45,-50,-14,-43,-14,-24,-32,-36,-30,-29,-24,-555,-518,-481,0,0,0,-389,-381,-477,-504,-483,-448,-417,-370,-503,-381,-370,-329,-449,-419,-701,-684,-650,-652,-502,-418,-1118,-907,-816,-731,-1215,-794,-2964,-3954,-1404,-412]} 1. e4 {[%emt 0:00:04]} e5 {[%emt 0:00:05]} 2. Bc4 {[%emt 0:00:09]} Nf6 {[%emt 0:00:11]} 3. d3 {[%emt 0:00:02]} c6 {[%emt 0:02:01]} 4. Nf3 {[%emt 0:00:04]} d5 {[%emt 0:00:09]} 5. Bb3 {[%emt 0:00:03]} Bb4+ {[%emt 0:00:40]} 6. Bd2 {[%emt 0:00:25]} Bxd2+ {[%emt 0:03:42]} 7. Nbxd2 {[%emt 0:00:06]} Nbd7 {[%emt 0:02:03] C24: Bishop's Opening: 2...Nf6.} 8. O-O {[%emt 0:00:40]} O-O {[%emt 0:01:10]} 9. Re1 {[%emt 0:00:23]} Re8 {[%emt 0:02:10] The position is equal.} 10. d4 {[%emt 0:00:52]} exd4 {[%emt 0:03:03][%cal Rf6e4]} 11. exd5 {[%emt 0:00:19]} cxd5 {[%emt 0:02:13]} 12. Nxd4 {[%emt 0:02:38]} Nc5 {[%emt 0:01:30]} 13. Nf1 {[%emt 0:02:53] [#]} Bd7 $146 {[%emt 0:02:25]} ({Predecessor:} 13... Bg4 14. Rxe8+ Qxe8 15. Qd2 Qd7 16. f3 Bh5 17. Re1 Bg6 18. Re3 h6 19. c3 Re8 {1-0 (59) Le,Q (2715)-Sadhwani,R (2455) Sharjah 2019}) 14. Ne3 {[%emt 0:02:01]} Ba4 {[%emt 0:03:46]} 15. c3 {[%emt 0:04:16]} Qd7 {[%emt 0:05:20]} 16. Bxa4 {[%emt 0:02:52]} Nxa4 {[%emt 0:00:19]} 17. Qc2 {[%emt 0:01:18]} g6 {[%emt 0:03:12]} 18. Rad1 {[%emt 0:02:05]} b5 {[%emt 0:02:13]} 19. Qb3 {[%emt 0:02:05]} a6 {[%emt 0:00:12]} 20. Ndc2 {[%emt 0:11:37]} Re5 {[%emt 0:08:52]} 21. Nb4 {[%emt 0:04:09]} Rae8 {[%emt 0:12:07]} 22. Rf1 {[%emt 0:02:38]} Qe6 {[%emt 0:08:02]} 23. Qc2 {[%emt 0:03:59]} (23. Nexd5 Nxd5 24. Rxd5 Re1 $17) 23... Rc8 {[%emt 0:05:12]} 24. Qb1 {[%emt 0:03:28]} Kg7 {[%emt 0:02:33]} 25. Nd3 {[%emt 0:03:15]} Re4 {[%emt 0:00:14]} 26. Nc2 {[%emt 0:00:12]} Qd6 {[%emt 0:02:53][%cal Oc8c3]} 27. f3 {[%emt 0:02:25]} Re7 {[%emt 0:01:24]} 28. Rfe1 {[%emt 0:01:46]} Rxe1+ {[%emt 0:02:21]} 29. Rxe1 {[%emt 0:00:03]} Nd7 {[%emt 0:03:15]} 30. Nd4 {[%emt 0:02:44]} Ndc5 {[%emt 0:01:05]} 31. Nf2 {[%emt 0:01:22][%cal Bd3f2,Bf2d1,Bd1e3][%mdl 32]} h5 {[%emt 0:00:57]} 32. Re2 {[%emt 0:02:30]} Qf6 {[%emt 0:00:32]} 33. a3 {[%emt 0:01:19]} Nb7 {[%emt 0:02:14]} 34. Qe1 {[%emt 0:03:35]} Nd6 {[%emt 0:00:34]} 35. Nd1 {[%emt 0:05:40]} Nb6 {[%emt 0:01:13]} 36. Ne3 {[%emt 0:05:07]} Kf8 {[%emt 0:01:02]} 37. Nec2 {[%emt 0:03:22]} a5 {[%emt 0:00:23][%cal Ba6a5,Ba5a4,Ba4b3][%mdl 32] Against Nb4} 38. Qf2 {[%emt 0:01:55][%cal Od4e6]} Nbc4 {[%emt 0:00:19]} 39. b3 {[%emt 0:00:55]} Nb2 {[%emt 0:01:47]} (39... Ne5 $11) 40. Qe1 {[%emt 0:00:42]} (40. Qe3 $6 Nd1 41. Qd2 (41. Qh6+ Kg8 $17) 41... Nxc3 $15) ({White has to play} 40. Rd2 $1 $16) 40... Nd3 $1 $15 {[%emt 0:17:07]} 41. Qd2 {[%emt 0:02:00]} Nf4 {[%emt 0:00:00]} 42. Re1 {[%emt 0:00:32]} a4 {[%emt 0:00:00] And now ...axb3 would win.} (42... Qg5 $5 {[%cal Rf4h3]} 43. Kh1 h4 $11) 43. g3 {[%emt 0:00:55] [#]} axb3 $1 {[%emt 0:00:00]} 44. Ne3 {[%emt 0:00:02]} (44. Nb4 Nc4) 44... Ne6 {[%emt 0:00:00]} 45. Nxd5 {[%emt 0:00:04] [#]} Nxd4 $1 {[%emt 0:00:00]} 46. cxd4 {[%emt 0:00:03]} Nc4 $36 {[%emt 0:00:00][%mdl 2048] Black fights for an advantage.} 47. Qh6+ {[%emt 0:01:02][%mdl 8192]} (47. Nxf6 $2 Nxd2 48. Kf2 b2 49. Nd7+ Kg7 $19) (47. Qb4+ $11 {and White stays safe.} Qd6 48. Qxd6+ (48. Qxb5 $2 b2 $19) 48... Nxd6 49. Rb1) 47... Qg7 $19 {[%emt 0:00:00]} 48. Qf4 {[%emt 0:00:26] [#]} Rd8 $2 {[%emt 0:00:00]} ({Better is} 48... g5 $1 $19 {[%cal Rg5f4]} 49. Qe4 Qg6 50. Qe7+ (50. Qe2 $2 Qe6 $19) 50... Kg7) 49. Kh1 $11 {[%emt 0:07:35][%cal Of4c7]} Kg8 {[%emt 0:00:00][%cal Bf8g8,Bg8h7,Bh7g6][%mdl 32]} 50. Qg5 {[%emt 0:03:35][%mdl 8192] [#] Black keeps a firm grip on the game.} (50. Nf6+ $1 $11 Kh8 51. Qg5) 50... Rd6 $1 $19 {[%emt 0:00:00] ...b2 is the strong threat.} 51. Ne7+ {[%emt 0:01:24]} Kh7 {[%emt 0:00:00]} 52. Qxb5 {[%emt 0:01:01]} Qxd4 {[%emt 0:00:00] ( -> ...Qf2)} 53. Nxg6 {[%emt 0:03:24]} Kxg6 {[%emt 0:00:59]} ({Not} 53... fxg6 $2 54. Qxb3 Rd7 55. Qc2 $19) 54. Qxb3 {[%emt 0:00:26]} Qd3 {[%emt 0:01:03]} 55. Qxd3+ {[%emt 0:01:26]} Rxd3 {[%emt 0:00:04][%mdl 4096] Endgame KRN-KR} 56. Kg2 {[%emt 0:00:10]} Rxa3 {[%emt 0:00:17]} 57. Re4 {[%emt 0:00:58]} (57. Re2 $142) 57... Ne3+ {[%emt 0:06:07]} 58. Kf2 {[%emt 0:00:09]} Nf5 {[%emt 0:00:00]} 59. Kg2 {[%emt 0:00:22]} Rd3 {[%emt 0:00:00]} 60. Kf2 {[%emt 0:00:47]} (60. Re2 $142) 60... Rd2+ {[%emt 0:00:00] Black is clearly winning.} 61. Kg1 {[%emt 0:00:03]} Nd4 {[%emt 0:00:00]} 62. Re3 {[%emt 0:00:03]} f6 {[%emt 0:00:00][%cal Oh5h4] Threatens to win with ...h4!} 63. Ra3 {[%emt 0:00:20]} h4 {[%emt 0:00:00] White must now prevent ...h3.} 64. gxh4 {[%emt 0:00:22]} Kh5 {[%emt 0:00:00] Weighted Error Value: White=0.52/Black=0.20 (precise)} 0-1

[Event "Charlotte GM-A May 2022"]
[Site "Charlotte"]
[Date "2022.05.08"]
[Round "7.2"]
[White "Liang, Jason"]
[Black "Williams, Justus"]
[Result "1/2-1/2"]
[ECO "D00"]
[WhiteElo "2432"]
[BlackElo "2417"]
[Annotator "TA"]
[PlyCount "107"]
[EventDate "2022.05.04"]
[EventType "tourn"]
[EventCountry "USA"]
[SourceTitle "playchess.com"]
[Source "ChessBase"]
[SourceQuality "1"]
[TimeControl "5400+30"]

{[%evp 9,107,0,0,0,0,10,10,6,29,0,18,14,14,8,18,-26,-23,-33,-33,-28,0,-23,-32,-35,-32,-31,-48,-72,-64,-73,-72,-59,-55,-70,-32,-77,-75,-78,-61,-68,-65,-70,-70,-69,-46,-40,-52,-47,-73,-55,8,8,14,15,93,112,95,102,97,111,86,76,145,8,23,22,167,20,29,29,67,73,79,0,46,99,154,30,354,327,252,0,0,0,0,0,0,0,0,0,0,0,0,0,0,0,0,0,0,0]} 1. d4 {[%emt 0:00:02]} Nf6 {[%emt 0:02:46]} 2. Nc3 {[%emt 0:00:09]} d5 {[%emt 0:01:25]} 3. Bf4 {[%emt 0:00:08]} a6 {[%emt 0:00:27]} 4. e3 {[%emt 0:00:14]} Bf5 {[%emt 0:01:16]} 5. Nf3 {[%emt 0:00:19]} e6 {[%emt 0:03:48]} 6. Ne5 {[%emt 0:00:16] D00: 1 d4 d5: Unusual lines.} h6 {[%emt 0:01:30]} 7. Bd3 {[%emt 0:04:31]} Bxd3 {[%emt 0:01:57]} 8. cxd3 {[%emt 0:00:12] [#]} Bd6 $146 {[%emt 0:03:46]} ({Predecessor:} 8... Be7 9. O-O O-O 10. Rc1 Nbd7 11. e4 c5 12. Nxd7 Qxd7 13. e5 Nh7 14. Ne2 Rfc8 {0-1 (38) Buksa,N (2401)-Dzagnidze,N (2531) Warsaw 2021}) 9. Qb3 {[%emt 0:02:56]} Ra7 {[%emt 0:02:31]} 10. h3 {[%emt 0:02:32]} O-O {[%emt 0:01:59]} 11. O-O {[%emt 0:00:30]} Nfd7 {[%emt 0:08:42]} 12. e4 {[%emt 0:14:40]} Bxe5 {[%emt 0:04:28]} 13. dxe5 {[%emt 0:01:14]} d4 {[%emt 0:01:30]} 14. Ne2 {[%emt 0:00:36]} Nc6 {[%emt 1:01:25]} 15. Rac1 {[%emt 0:04:14][%cal Oc1c6]} Ndxe5 {[%emt 0:00:00]} 16. Bg3 {[%emt 0:01:12]} Nd7 {[%emt 0:00:00][%cal Be5d7,Bd7b6,Bb6a4][%mdl 32]} 17. f4 {[%emt 0:07:42]} a5 {[%emt 0:00:00][%cal Ba6a5,Ba5a4,Ba4a3][%mdl 32]} 18. Rc4 {[%emt 0:12:56]} Nb6 {[%emt 0:00:00]} 19. Rc5 {[%emt 0:00:50]} Qd6 {[%emt 0:00:00]} 20. Rfc1 {[%emt 0:03:04]} a4 {[%emt 0:00:00]} 21. Qd1 {[%emt 0:03:36]} a3 {[%emt 0:00:00]} 22. b4 {[%emt 0:02:45] aiming for b5.} Na4 $1 {[%emt 0:00:00]} (22... Nxb4 23. f5 Qd7 24. Rxc7 $16) 23. Rb5 {[%emt 0:03:04]} f5 {[%emt 0:00:00]} (23... Nxb4 24. f5 Qa6 25. Rxb4 $11) 24. exf5 {[%emt 0:04:51]} exf5 {[%emt 0:00:00]} ({But not} 24... Nxb4 25. Qb3 Nxd3 26. Qxd3 $16) ({Much weaker is} 24... Rxf5 $6 25. Rxf5 exf5 26. Qb3+ Kh8 27. Bf2 $11) 25. Qb3+ {[%emt 0:00:48]} Kh7 $1 {[%emt 0:00:00]} 26. Bf2 $1 {[%emt 0:01:04]} Rf6 {[%emt 0:00:00]} 27. Rd5 {[%emt 0:05:04][%cal Bb5d5,Bd5d4,Bd4d7][%mdl 32]} Qxb4 {[%emt 0:00:00]} 28. Qxb4 {[%emt 0:02:26]} Nxb4 {[%emt 0:00:00] Pair of Knights!} 29. Rxd4 {[%emt 0:00:08]} Nc6 {[%emt 0:07:30]} (29... Nxa2 $15 30. Ra1 c5 $1) 30. Rd7 $11 {[%emt 0:00:15][%csl LRa7,LRc7]} b6 {[%emt 0:00:00]} 31. Ng3 {[%emt 0:05:13]} Kg6 {[%emt 0:00:00] [#] Inhibits Nh5.} (31... Kg8 $1 $11) 32. Nh5 $1 $36 {[%emt 0:04:44][%mdl 2048] Keeping Black busy. White is more active.} Kxh5 {[%emt 0:00:00]} 33. Rxg7 {[%emt 0:00:07] White wants to mate with g4+.} Rg6 {[%emt 0:00:00] Prevents g4+.} 34. Rxg6 {[%emt 0:00:11][%mdl 64] Remove Defender} Kxg6 {[%emt 0:00:00]} 35. Rxc6+ {[%emt 0:00:09][%mdl 4096] Endgame KRB-KRN} Kh7 {[%emt 0:00:00] [#]} ({Black should try} 35... Kf7) 36. g4 {[%emt 0:00:36]} (36. Kf1 $1 $16) 36... fxg4 {[%emt 0:00:00]} 37. hxg4 {[%emt 0:00:12] Hoping for f5.} Nc5 {[%emt 0:00:00]} (37... Nb2 $11 {and Black stays safe.}) 38. f5 {[%emt 0:02:10]} (38. Bxc5 $18 bxc5 39. Kg2 (39. Rxc5 Kg7 $18)) 38... Nxd3 $11 {[%emt 0:00:00]} 39. Be3 {[%emt 0:00:06] Black must now prevent Kg2.} Ne5 {[%emt 0:00:00]} 40. Rxh6+ {[%emt 0:00:12]} Kg8 {[%emt 0:00:00]} 41. g5 {[%emt 0:00:56]} (41. Re6 $16 Nc4 42. Bf4) 41... Ra4 {[%emt 0:01:30]} (41... Ra5 $1 $11) 42. Re6 $14 {[%emt 0:00:57]} Re4 {[%emt 0:00:47]} (42... Ra5 $142) 43. Bc1 {[%emt 0:03:48]} (43. Kf2 $16) 43... Re1+ $2 {[%emt 0:00:42][%mdl 8192]} (43... Nf3+ $1 $11 44. Kf2 Rxe6 45. fxe6 Nd4) 44. Kg2 $18 {[%emt 0:00:07]} Rxc1 {[%emt 0:00:45] [#]} 45. Rxe5 $2 {[%emt 0:00:06] KR-KR} (45. Re8+ $1 $18 Kf7 46. Rxe5) 45... Rc2+ $11 {[%emt 0:00:53] The position is equal.} 46. Kh3 {[%emt 0:00:15] Strongly threatening g6.} Rxa2 {[%emt 0:00:11]} 47. g6 {[%emt 0:04:38] Threatening mate with f6.} Rf2 {[%emt 0:00:18] ...a2 is the strong threat.} 48. Re8+ {[%emt 0:02:40]} Kg7 {[%emt 0:00:06]} 49. Re7+ {[%emt 0:00:05]} Kf8 {[%emt 0:00:16]} (49... Kg8 $5 50. Re8+ Kg7 51. Re7+ Kh8 52. Re8+ Kg7 $11) 50. Rf7+ {[%emt 0:01:52]} Kg8 {[%emt 0:01:48] And now ...a2 would win.} 51. f6 $1 {[%emt 0:00:16]} a2 {[%emt 0:00:25]} 52. Rg7+ $1 {[%emt 0:00:07]} Kf8 {[%emt 0:00:06]} (52... Kh8 $5 53. Rh7+ Kg8 54. Rg7+ Kh8 55. Rh7+ Kg8 56. Rg7+ $11) 53. Rf7+ $1 {[%emt 0:00:11]} Kg8 {[%emt 0:00:23]} 54. Rg7+ $1 {[%emt 0:00:26] Weighted Error Value: White=0.27 (precise) /Black=0.27 (precise)} 1/2-1/2

[Event "Charlotte GM-A May 2022"]
[Site "Charlotte"]
[Date "2022.05.07"]
[Round "7.3"]
[White "Ostrovskiy, Aleksandr"]
[Black "Stremavicius, Titas"]
[Result "1/2-1/2"]
[WhiteElo "2397"]
[BlackElo "2508"]
[Annotator "TA"]
[PlyCount "36"]
[EventDate "2022.05.04"]
[EventType "tourn"]
[EventCountry "USA"]
[SourceTitle "playchess.com"]
[Source "ChessBase"]
[SourceQuality "1"]
[TimeControl "5400+30"]

{[%evp 16,17,17,12]} 1. e4 {[%emt 0:02:08]} c5 {[%emt 0:01:14]} 2. Nf3 {[%emt 0:00:27][%cal Bg1f3,Bf3d4,Bd4b5][%mdl 32]} Nc6 {[%emt 0:00:06]} 3. d4 {[%emt 0:00:03]} cxd4 {[%emt 0:00:07]} 4. Nxd4 {[%emt 0:00:03]} Nf6 {[%emt 0:00:09]} 5. Nc3 {[%emt 0:00:03]} e5 {[%emt 0:00:12]} 6. Ndb5 {[%emt 0:00:11]} d6 {[%emt 0:00:05]} 7. Nd5 {[%emt 0:00:22]} Nxd5 {[%emt 0:00:06]} 8. exd5 {[%emt 0:00:02]} Nb8 {[%emt 0:00:08]} 9. a4 {[%emt 0:00:07] [#]} {Predecessor:} Be7 $146 {B33: Sicilian: Pelikan and Sveshnikov Variations.} 10. Be2 O-O 11. O-O Nd7 12. Bd2 a6 13. Na3 a5 14. Nc4 b6 15. f4 exf4 16. Bxf4 Nc5 17. c3 f5 18. Be3 Ba6 {0-1 (71) Niemann,H (2645)-Salem,A (2690) Warsaw 2021} 1/2-1/2

[Event "Charlotte GM-A May 2022"]
[Site "Charlotte"]
[Date "2022.05.08"]
[Round "7.4"]
[White "Belous, Vladimir"]
[Black "Song, Micheal"]
[Result "1/2-1/2"]
[ECO "A21"]
[WhiteElo "2525"]
[BlackElo "2408"]
[Annotator "TA"]
[PlyCount "262"]
[EventDate "2022.05.04"]
[EventType "tourn"]
[EventCountry "USA"]
[SourceTitle "playchess.com"]
[Source "ChessBase"]
[SourceQuality "1"]
[TimeControl "5400+30"]

{[%evp 126,262,7,7,7,0,7,7,7,0,7,0,7,7,7,0,7,7,7,7,7,0,7,7,7,7,7,0,7,0,7,0,7,7,7,0,7,0,7,7,7,7,7,7,7,0,7,7,7,7,7,0,7,7,7,7,7,0,7,0,7,0,7,7,7,7,7,7,7,7,7,7,8,8,8,8,8,8,8,8,8,8,8,0,0,0,0,0,8,8,8,8,8,8,8,8,8,8,8,8,8,8,8,8,8,8,8,8,8,0,8,8,8,0,8,8,8,8,8,0,0,0,0,0,0,0,0,0,0,0,0,0,0,0,0,0,5,5,5]} 1. c4 {[%emt 1:31:00]} f5 {[%emt 0:00:11]} 2. Nf3 {[%emt 0:00:00]} Nf6 {[%emt 0:00:13]} 3. g3 {[%emt 0:00:00]} g6 {[%emt 0:00:12]} 4. Bg2 {[%emt 0:00:00]} Bg7 {[%emt 0:00:11]} 5. O-O {[%emt 0:00:00]} O-O {[%emt 0:00:15]} 6. Nc3 {[%emt 0:00:00]} d6 {[%emt 0:00:31]} 7. Rb1 {[%emt 0:00:00]} e5 {[%emt 0:00:41]} 8. d3 {[%emt 0:00:00]} a5 {[%emt 0:00:24]} 9. a3 {[%emt 0:00:00]} h6 {[%emt 0:00:32]} 10. b4 {[%emt 0:00:00]} axb4 {[%emt 0:00:10]} 11. axb4 {[%emt 0:00:00]} Be6 {[%emt 0:00:53]} 12. b5 {[%emt 0:00:00]} c6 {[%emt 0:00:32]} 13. c5 {[%emt 0:00:00]} Nd5 {[%emt 0:04:12]} 14. Nxd5 {[%emt 0:00:00]} cxd5 {[%emt 0:02:23]} 15. Bb2 {[%emt 0:00:00]} Qc7 {[%emt 0:38:41]} 16. e4 {[%emt 0:00:00]} dxc5 {[%emt 0:08:04]} 17. exd5 {[%emt 0:00:00]} Bxd5 {[%emt 0:02:51]} 18. Re1 {[%emt 0:00:00]} Nd7 {[%emt 0:07:12]} 19. Nxe5 {[%emt 0:00:00]} Nxe5 {[%emt 0:04:29]} 20. Bxd5+ {[%emt 0:00:00]} Kh7 {[%emt 0:00:55]} 21. b6 {[%emt 0:00:00]} Qd6 {[%emt 0:02:38]} 22. Bxb7 {[%emt 0:00:00]} Rab8 {[%emt 0:00:05]} 23. Bxe5 {[%emt 0:00:00]} Bxe5 {[%emt 0:00:08]} 24. Bf3 {[%emt 0:00:00]} Bc3 {[%emt 0:00:16]} 25. b7 {[%emt 0:00:00]} Bxe1 {[%emt 0:00:20]} 26. Qxe1 {[%emt 0:00:00]} Rfe8 {[%emt 0:01:34]} 27. Qc3 {[%emt 0:00:00]} Re7 {[%emt 0:01:45]} 28. h4 {[%emt 0:00:00]} h5 {[%emt 0:00:37]} 29. Rb5 {[%emt 0:00:00]} Rd7 {[%emt 0:06:44]} 30. Rxc5 {[%emt 0:00:00]} Qxd3 {[%emt 0:00:09]} 31. Qxd3 {[%emt 0:00:00]} Rxd3 {[%emt 0:00:06]} 32. Rc8 {[%emt 0:00:00]} Rxf3 {[%emt 0:11:38]} 33. Rxb8 {[%emt 0:00:00]} Rb3 {[%emt 0:00:04]} 34. Kf1 {[%emt 0:00:00]} Rb2 {[%emt 0:00:08]} 35. Ke1 {[%emt 0:00:00]} Kg7 {[%emt 0:00:06]} 36. Kd1 {[%emt 0:00:00]} Rb4 {[%emt 0:00:21]} 37. Kd2 {[%emt 0:00:00]} Rb3 {[%emt 0:00:38]} 38. Kc2 {[%emt 0:00:00]} Rb4 {[%emt 0:00:03]} 39. Kc3 {[%emt 0:00:00]} Rb1 {[%emt 0:00:05]} 40. f3 {[%emt 0:00:00]} Rb6 {[%emt 0:03:13]} 41. Kc4 {[%emt 0:00:00]} Rb1 {[%emt 0:00:11]} 42. Kd5 {[%emt 0:00:00]} Rb2 {[%emt 0:00:22]} 43. Ke6 {[%emt 0:00:00]} Rb6+ {[%emt 0:03:04]} 44. Ke5 {[%emt 0:00:00]} Rb4 {[%emt 0:00:07]} 45. Kd5 {[%emt 0:00:00]} Rb1 {[%emt 0:00:11]} 46. Kc6 {[%emt 0:00:00]} Rc1+ {[%emt 0:00:05]} 47. Kd6 {[%emt 0:00:00]} Rd1+ {[%emt 0:02:44]} 48. Ke5 {[%emt 0:00:00]} Rb1 {[%emt 0:00:11]} 49. Kf4 {[%emt 0:00:00]} Rb4+ {[%emt 0:02:57]} 50. Kg5 {[%emt 0:00:00]} f4 {[%emt 0:00:01]} 51. g4 {[%emt 0:00:00]} hxg4 {[%emt 0:00:02]} 52. Kxg4 {[%emt 0:00:00]} Kh7 {[%emt 0:00:06]} 53. h5 {[%emt 0:00:00]} gxh5+ {[%emt 0:00:05]} 54. Kxh5 {[%emt 0:00:00]} Kg7 {[%emt 0:00:56]} 55. Kg5 {[%emt 0:00:00]} Kh7 {[%emt 0:00:09]} 56. Kf6 {[%emt 0:00:00]} Rb1 {[%emt 0:00:36]} 57. Ke5 {[%emt 0:00:00]} Rb4 {[%emt 0:00:04]} 58. Kd5 {[%emt 0:00:00]} Rb1 {[%emt 0:00:16]} 59. Kd6 {[%emt 0:00:00]} Kg7 {[%emt 0:00:23]} 60. Kc5 {[%emt 0:00:00]} Rb2 {[%emt 0:00:58]} 61. Kd4 {[%emt 0:00:00]} Rb1 {[%emt 0:00:10]} 62. Ke4 {[%emt 0:00:00]} Rb4+ {[%emt 0:00:05]} 63. Ke5 {[%emt 0:00:00]} Kh7 {[%emt 0:00:07]} 64. Kd6 {[%emt 0:00:00]} Rb1 {[%emt 0:00:08]} 65. Ke5 {[%emt 0:00:00]} Rb4 $1 {[%emt 0:00:05]} 66. Kf5 {[%emt 0:00:00]} Kg7 {[%emt 0:00:06]} 67. Kg5 {[%emt 0:00:00]} Kh7 $1 {[%emt 0:00:12]} 68. Kf6 {[%emt 0:00:00]} Rb1 {[%emt 0:00:26]} 69. Ke6 {[%emt 0:00:00]} Kg7 {[%emt 0:06:03]} 70. Kd6 {[%emt 0:00:00]} Rb2 {[%emt 0:00:00]} 71. Kd5 {[%emt 0:00:00]} Rb1 {[%emt 0:00:00]} 72. Kc4 {[%emt 0:00:00]} Rb2 {[%emt 0:00:00]} 73. Kd4 {[%emt 0:00:00]} Rb1 {[%emt 0:00:00]} 74. Ke5 {[%emt 0:00:00]} Rb4 {[%emt 0:00:00]} 75. Kf5 $1 {[%emt 0:00:00]} Kh7 $1 {[%emt 0:00:00]} 76. Kf6 {[%emt 0:00:00]} Rb1 {[%emt 0:00:00]} 77. Ke5 {[%emt 0:00:00]} Rb4 $1 {[%emt 0:00:00]} 78. Kd6 {[%emt 0:00:00]} Rb1 {[%emt 0:00:00]} 79. Kc6 {[%emt 0:00:41]} Rc1+ $1 {[%emt 0:00:00]} 80. Kd5 {[%emt 0:00:05]} Rb1 {[%emt 0:00:00]} 81. Kd6 {[%emt 0:01:58]} Kg7 {[%emt 0:00:00]} 82. Kc7 {[%emt 0:01:19]} Rc1+ $1 {[%emt 0:00:00]} 83. Kb6 {[%emt 0:00:03]} Rb1+ {[%emt 0:00:00]} 84. Kc6 {[%emt 0:00:03]} Rc1+ $1 {[%emt 0:00:00]} 85. Kd5 {[%emt 0:00:05]} Rb1 {[%emt 0:00:00]} 86. Kd4 {[%emt 0:00:12]} Rb2 {[%emt 0:00:00]} 87. Kc4 {[%emt 0:00:30]} Rb1 {[%emt 0:00:00]} 88. Kc5 {[%emt 0:00:05]} Rb2 {[%emt 0:00:00]} 89. Kc6 {[%emt 0:00:11]} Rc2+ $1 {[%emt 0:00:00]} 90. Kd5 {[%emt 0:00:14]} Rb2 {[%emt 0:00:00]} 91. Ke6 {[%emt 0:00:50]} Rb1 {[%emt 0:00:00]} 92. Kf5 {[%emt 0:00:19]} Rb4 $1 {[%emt 0:00:00]} 93. Kg5 {[%emt 0:00:06]} Kh7 $1 {[%emt 0:00:00]} 94. Rf8 {[%emt 0:01:40]} Rxb7 {[%emt 0:00:00]} 95. Rxf4 {[%emt 0:00:04]} Kg7 {[%emt 0:00:00]} 96. Rf6 {[%emt 0:00:28]} Rb5+ {[%emt 0:00:00]} 97. Rf5 {[%emt 0:00:01]} Rb6 {[%emt 0:00:07]} 98. Rc5 {[%emt 0:03:57]} Ra6 {[%emt 0:00:06]} 99. Rc7+ {[%emt 0:00:24]} Kf8 {[%emt 0:00:05]} 100. f4 {[%emt 0:00:06]} Kg8 {[%emt 0:00:16]} 101. f5 {[%emt 0:00:11]} Kf8 {[%emt 0:00:06]} 102. Rd7 {[%emt 0:00:13]} Kg8 {[%emt 0:00:11]} 103. Kf4 {[%emt 0:00:19]} Kf8 {[%emt 0:00:06]} 104. Ke5 {[%emt 0:00:07]} Ra5+ {[%emt 0:00:50]} 105. Kf6 {[%emt 0:01:50]} Ra6+ {[%emt 0:00:05]} 106. Kg5 {[%emt 0:00:07]} Kg8 {[%emt 0:00:21]} 107. Re7 {[%emt 0:00:17]} Kf8 {[%emt 0:00:08]} 108. Rb7 {[%emt 0:00:08]} Kg8 {[%emt 0:00:07]} 109. Kh5 {[%emt 0:00:28]} Kf8 {[%emt 0:00:19]} 110. Kg4 {[%emt 0:00:25]} Ra4+ {[%emt 0:00:23]} 111. Kg5 {[%emt 0:00:01]} Ra6 {[%emt 0:00:06]} 112. Kf4 {[%emt 0:00:12]} Ke8 {[%emt 0:00:16]} 113. Ke5 {[%emt 0:00:24]} Kf8 {[%emt 0:00:08]} 114. Rc7 {[%emt 0:00:19]} Ke8 {[%emt 0:00:21]} 115. Kf4 {[%emt 0:00:39]} Kf8 {[%emt 0:00:08]} 116. Kg5 {[%emt 0:00:05]} Kg8 {[%emt 0:00:17]} 117. Re7 {[%emt 0:00:32]} Kf8 {[%emt 0:00:20]} 118. Re2 {[%emt 0:00:08]} Kf7 {[%emt 0:00:13]} 119. Re1 {[%emt 0:00:07]} Kg7 {[%emt 0:00:20]} 120. Re6 {[%emt 0:00:08]} Ra5 {[%emt 0:06:17]} 121. Rd6 {[%emt 0:00:29]} Ra7 {[%emt 0:00:49]} 122. Rh6 {[%emt 0:00:26]} Ra1 {[%emt 0:01:43]} 123. Rg6+ {[%emt 0:00:46]} Kf7 {[%emt 0:00:28]} 124. Rf6+ {[%emt 0:00:22]} Kg7 {[%emt 0:00:07]} 125. Rb6 {[%emt 0:00:16]} Rg1+ {[%emt 0:00:06]} 126. Kf4 {[%emt 0:00:04]} Rf1+ {[%emt 0:00:05]} 127. Ke5 {[%emt 0:00:01]} Re1+ {[%emt 0:00:06]} 128. Kd5 {[%emt 0:00:01]} Kf7 {[%emt 0:00:23]} 129. Rh6 {[%emt 0:00:28]} Rd1+ {[%emt 0:00:07]} 130. Ke5 {[%emt 0:00:06]} Re1+ {[%emt 0:00:04]} 131. Kd6 {[%emt 0:00:04]} Rd1+ {[%emt 0:00:09]} 1/2-1/2